Cogmind - Beta 16 @@@ ROGUE MODE // 2025.11.23 @ 22:50:53 Player: MolePlayingNice Result: Destroyed by P-80 Master with Gamma Rifle Performance ------------- Evolutions (8) 4000 Regions Visited (22) 4400 Robots Destroyed (202) 1010 Value Destroyed (7303) 7303 Prototype IDs (98) 1960 Alien Tech Used (1) 200 Bonus (4215) 4215 TOTAL SCORE: 23088 Bonus ------- High Alert Combat Kills 57 Follower Combat Kills 1800 Entered Garrisons 200 Used RIF Installer 500 Network Hubs Disabled 600 Built Enhanced Grunts 300 A7 Reached Mainframe 300 Scanned by Researcher 500 Friendly Fire -42 Cogmind --------- Core Integrity 0/1450 Matter 300/300 Energy 807/900 System Corruption 68% Temperature Cool (0) Movement Treading (160) Location -2/Protoforge Parts ------- > --- POWER (2) -------- (None) > --- PROPULSION (7) --- Experimental Heavy Siege Treads Concept Fieldthrust Drive > --- UTILITY (10) ----- Concept Phasing Heat Sink Concept Chromion Battery Concept RG22 Armor Concept RG22 Armor Graphene Brace > --- WEAPON (4) ------- (None) > --- INVENTORY (5) ---- Faulty Concept Fieldthrust Drive Experimental System Purifier Crosscalibrator Subatomic Replicator Peak State ------------ > --- POWER ------------ Micro Antimatter Reactor Light Quantum Reactor > --- PROPULSION ------- Cooled Field Propulsion Drive Cooled Field Propulsion Drive Diametric Drive Electron Diverter Cooled Impulse Thruster Impulse Thruster Array > --- UTILITY ---------- Medium Storage Unit Advanced Signal Interpreter Experimental Core Analyzer Femtoactuators Experimental Utility Shielding Centrium Medium Armor Plating Graphene Brace Improved Hacking Suite Improved Hacking Suite Advanced Hacking Suite > --- WEAPON ----------- Molecular Scythe Nanosword Nanosword > --- INVENTORY -------- Graviton Reactor Experimental Actuator Array ECM Suite Experimental Utility Shielding Experimental Utility Shielding Authchip [Device] High-powered Transdimensional Reconstructor High-powered Transdimensional Reconstructor Subatomic Replicator Long-range Missile Launcher [Rating: 173] Favorites ----------- Power Micro Nuclear Core Engine Cooled Ion Engine Power Core Micro Nuclear Core Reactor Micro Antimatter Reactor Propulsion Improved VTOL Module Treads Armored Treads Leg Aluminum Leg Wheel Wheel Hover Unit Experimental Antigrav System Flight Unit Improved VTOL Module Utility Improved Hacking Suite Device Improved Heat Sink Storage Huge Storage Unit Processor Advanced Signal Interpreter Hackware Improved Hacking Suite Protection Hardened Medium Armor Plating Weapon Advanced Beam Cannon Energy Gun Medium Laser Energy Cannon Advanced Beam Cannon Ballistic Gun Assault Rifle Ballistic Cannon Light Cannon Launcher Advanced EMP Blaster Special Weapon Remote Datajack Slashing Weapon Nanosword Piercing Weapon Heavy Pick Build | -11 -10 -9 -8 -8 -8 -7 -6 -6 -6 -5 -5 -5 -5 -5 -5 -5 -4 -3 -3 -2 -2 -2 ------- Run | Yrd Mat Mat Mat Gar Mat Fac Fac Was Fac Fac Was Fac Ext Cet Arc Hub Fac Res Tes Res Qua Frg Slots Evolved 16 | . . 2 2 . . 2 2 . . 2 . . . . . . 2 2 . 2 . . Power 1 | . . . . . . . . . . . . . . . . . . . . 1 . . Propulsion 5 | . . 1 . . . 1 . . . 1 . . . . . . 1 . . 1 . . Utility 8 | . . 1 2 . . 1 2 . . 1 . . . . . . . 1 . . . . Weapon 2 | . . . . . . . . . . . . . . . . . 1 1 . . . . Parts Attached 190 | . 15 24 15 8 8 20 1 . 10 2 . 5 5 3 3 . 21 11 9 6 5 19 Power 24 | . 2 4 2 2 1 1 . . 1 . . . . . . . 2 1 1 1 3 3 Engine 10 | . 2 4 2 2 . . . . . . . . . . . . . . . . . . Core 5 | . . . . . 1 1 . . 1 . . . . . . . 2 . . . . . Reactor 9 | . . . . . . . . . . . . . . . . . . 1 1 1 3 3 Propulsion 48 | . 3 11 4 2 2 8 . . . . . 1 . . . . 5 2 1 1 1 7 Treads 19 | . 3 6 4 2 2 . . . . . . . . . . . . . . . . 2 Leg 5 | . . 4 . . . . . . . . . . . . . . . . . . . 1 Wheel 2 | . . 1 . . . . . . . . . . . . . . . 1 . . . . Hover 2 | . . . . . . . . . . . . . . . . . . . . . . 2 Flight 20 | . . . . . . 8 . . . . . 1 . . . . 5 1 1 1 1 2 Utility 87 | . 5 6 8 2 4 7 1 . 7 1 . 4 3 2 3 . 10 5 5 4 1 9 Device 27 | . 2 3 3 1 . 2 . . 2 1 . 2 . . 1 . 3 . 1 1 . 5 Storage 6 | . 2 . . . . . . . . . . 1 . . . . 2 . . . . 1 Processor 7 | . . . . . . 2 . . 1 . . . . . . . 1 . 2 . . 1 Hackware 28 | . . . 2 . 2 3 1 . 4 . . 1 1 . 2 . 3 5 2 1 1 . Protection 19 | . 1 3 3 1 2 . . . . . . . 2 2 . . 1 . . 2 . 2 Artifact . | . . . . . . . . . . . . . . . . . . . . . . . Weapon 31 | . 5 3 1 2 1 4 . . 2 1 . . 2 1 . . 4 3 2 . . . Energy Gun 4 | . 2 1 . . . . . . . . . . . . . . . 1 . . . . Energy Cannon 5 | . . 2 1 1 . . . . . . . . . . . . 1 . . . . . Ballistic Gun 2 | . 2 . . . . . . . . . . . . . . . . . . . . . Ballistic Cannon 1 | . 1 . . . . . . . . . . . . . . . . . . . . . Launcher 5 | . . . . 1 1 . . . 1 . . . 1 . . . . . 1 . . . Special Weapon 4 | . . . . . . 1 . . . 1 . . . 1 . . 1 . . . . . Impact Weapon . | . . . . . . . . . . . . . . . . . . . . . . . Slashing Weapon 9 | . . . . . . 3 . . . . . . 1 . . . 2 2 1 . . . Piercing Weapon 1 | . . . . . . . . . 1 . . . . . . . . . . . . . Special Melee Weapon . | . . . . . . . . . . . . . . . . . . . . . . . Unidentified Prototypes 18 | . . 2 1 . 1 . . . . . . . . 1 . . 1 1 6 1 2 2 Corrupted Parts 2 | . . . . . . . . . . . . . . . . . . . . . . 2 System Corruption 20 | . . . . . . . . . . . . . . . . . . . . . . 20 Parts Lost 32 | . 2 2 . 1 2 . . . 1 . . . . . . . 1 1 . 2 . 20 Power 6 | . 1 1 . . . . . . . . . . . . . . . . . . . 4 Propulsion 11 | . 1 . . . 1 . . . . . . . . . . . 1 . . 1 . 7 Utility 11 | . . . . 1 1 . . . 1 . . . . . . . . 1 . 1 . 6 Weapon 4 | . . 1 . . . . . . . . . . . . . . . . . . . 3 Highest Loss Streak 8 | . 1 1 . 1 2 . . . 1 . . . . . . . 1 1 . 2 . 8 To Critical Strikes . | . . . . . . . . . . . . . . . . . . . . . . . Average Backups 13 | 6 11 22 24 24 24 8 6 6 7 7 8 8 9 8 8 8 8 9 9 10 9 6 Power . | 1 . 1 1 1 1 . 1 1 1 1 1 . . . . . . . . . . . Propulsion 2 | 4 2 2 6 6 6 1 2 2 1 . . . 1 1 1 1 . . . . . . Utility 6 | . 2 11 10 9 10 3 1 1 3 3 4 4 4 3 3 4 5 6 7 7 6 4 Weapon 3 | 1 5 7 5 6 5 1 1 2 2 3 3 3 2 2 2 2 2 1 1 1 1 . Tool/Special . | . . . . . . . . . . . . . . . . . . . . . . . Unused Backups 55 | . 3 12 10 4 2 4 . . 3 . . 1 . . . 1 2 1 1 1 3 7 Power 5 | . . 1 2 . . . . . . . . 1 . . . . . . . . 1 . Propulsion 8 | . 2 . 1 4 . . . . . . . . . . . . . . . . . 1 Utility 24 | . . 2 4 . . 2 . . 3 . . . . . . 1 2 1 1 1 2 5 Weapon 16 | . 1 9 2 . 2 2 . . . . . . . . . . . . . . . . Tool/Special 2 | . . . 1 . . . . . . . . . . . . . . . . . . 1 Average Slot Usage (%) 93 | . 93 97 99 100 100 92 98 100 100 99 100 100 100 100 100 100 95 86 93 88 84 62 Engine 3 | . 12 9 9 9 3 . . . . . . . . . . . . . . . . . Core 2 | . . . . . 5 7 6 6 6 5 5 5 5 5 5 5 4 1 . . . . Treads 9 | . 27 7 27 27 27 1 . . . . . . . . . . . . . . . . Leg 1 | . . 18 . . . . . . . . . . . . . . . . . . . . Flight 15 | . . . . . . 27 26 26 26 29 29 29 29 29 29 29 29 22 23 23 21 13 Device 10 | . 10 11 18 17 16 5 4 6 5 6 5 5 5 5 6 5 6 9 6 7 5 10 Storage 7 | . 13 11 9 9 9 7 6 6 6 5 5 5 5 5 5 5 4 4 4 4 4 2 Processor 3 | . . . . . . 7 6 6 6 5 5 5 5 5 5 5 5 4 10 8 8 6 Hackware 13 | . . . . . 6 21 26 26 32 29 29 29 28 29 29 29 26 22 16 17 16 5 Protection 7 | . . 10 17 18 12 2 6 6 . 3 5 4 5 5 3 5 3 3 7 4 7 7 Energy Cannon 5 | . . 16 18 17 17 1 . . . . . . . . . . . . . . . . Ballistic Gun 1 | . 20 . . . . . . . . . . . . . . . . . . . . . Special Weapon 1 | . . . . . . . 4 6 5 5 5 5 4 . . . 2 . . . . . Slashing Weapon 3 | . . . . . . 6 7 6 4 . . . 2 5 5 5 5 6 17 14 13 9 Piercing Weapon 1 | . . . . . . . . . 1 5 5 5 3 5 5 5 5 1 . . . . Peak Build Rating 173 | 6 9 30 38 38 39 47 50 50 58 64 64 71 76 81 85 85 103 136 155 168 173 172 Average Rating 66 | 6 7 19 35 36 37 41 49 50 53 63 64 66 72 79 81 84 90 120 148 155 151 128 On Entrance 69 | 6 6 9 30 38 37 38 45 50 50 58 64 64 71 76 81 85 84 103 131 155 148 172 Avg Prop Armor Cover (%) 11 | . 28 10 . . . . . . . . . . . . . . 1 . . 1 . 11 Naked Turns 1 | . 1 . . . . . . . . . . . . . . . . . . . . . Heaviest Build 114 | 13 91 105 114 114 114 103 20 20 20 21 21 26 27 26 26 26 35 42 42 51 52 46 Greatest Support 100 | 20 40 60 62 62 62 82 20 22 22 27 27 29 27 27 27 29 36 53 55 65 63 100 Greatest Overweight (x) 10 | . 4 10 2 1 1 1 . . . . . . . . . . 1 . . . . 4 Average Overweight (x) . | . 1 6 1 1 1 . . . . . . . . . . . . . . . . . Largest Inventory Capacity 25 | 8 25 25 25 25 25 25 8 8 8 8 8 10 10 8 8 8 25 10 10 10 10 10 Average Capacity 14 | 8 18 25 25 25 25 8 8 8 8 8 8 8 9 8 8 8 8 10 10 10 10 7 Most Carried 25 | 6 18 25 25 25 25 23 7 6 8 8 8 10 10 8 8 8 10 10 10 10 10 10 Average Carried 13 | 6 11 22 24 24 24 8 6 6 7 7 8 8 9 8 7 7 8 9 9 9 9 6 Final Capacity 25 | 8 25 25 25 25 25 8 8 8 8 8 8 10 8 8 8 8 10 10 10 10 10 5 Final Carried 25 | 6 18 25 25 25 24 8 6 6 8 8 8 10 8 8 8 8 10 10 10 10 10 4 Class Distribution -------------------- 37% | Mutant 34% | Hacker-Sprinter 17% | Wizard-Sprinter 4% | Scavenger-Mutant Dominant Class ---------------- Mutant | -10/Materials Scavenger-Mutant | -9/Materials Mutant | -8/Materials Mutant | -8/Garrison Mutant | -8/Materials Hacker-Sprinter | -7/Factory Hacker-Sprinter | -6/Factory Hacker-Sprinter | -6/Waste Hacker-Sprinter | -6/Factory Hacker-Sprinter | -5/Factory Hacker-Sprinter | -5/Waste Hacker-Sprinter | -5/Factory Hacker-Sprinter | -5/Extension Hacker-Sprinter | -5/Cetus Wizard-Sprinter | -5/Archives Wizard-Sprinter | -5/Hub_04(d) Wizard-Sprinter | -4/Factory Wizard-Sprinter | -3/Research Hacker-Sprinter | -3/Testing Hacker-Sprinter | -2/Research Hacker-Sprinter | -2/Quarantine Hacker-Sprinter | -2/Protoforge Resources | -11 -10 -9 -8 -8 -8 -7 -6 -6 -6 -5 -5 -5 -5 -5 -5 -5 -4 -3 -3 -2 -2 -2 ----------- Run | Yrd Mat Mat Mat Gar Mat Fac Fac Was Fac Fac Was Fac Ext Cet Arc Hub Fac Res Tes Res Qua Frg Matter Collected 4670 | 200 594 380 160 141 133 445 20 . 234 126 . . 418 27 94 . 478 287 105 166 206 456 Remotely . | . . . . . . . . . . . . . . . . . . . . . . . Salvage Created 8677 | . 584 1292 1135 548 720 535 20 . 226 156 . . 504 . 241 231 598 345 95 96 311 1040 Parts 424 | . 36 56 51 22 29 32 1 . 15 9 . . 21 . 19 5 38 14 7 7 18 44 Haulers Intercepted 18 | . 1 4 2 . 1 4 . . 1 . . . . . . 2 1 1 . . 1 . Recyclers Shooed 6 | . 2 3 . . 1 . . . . . . . . . . . . . . . . . Parts Field Recycled . | . . . . . . . . . . . . . . . . . . . . . . . Retrieved Matter . | . . . . . . . . . . . . . . . . . . . . . . . Parts Self-Destructed . | . . . . . . . . . . . . . . . . . . . . . . . Prevented . | . . . . . . . . . . . . . . . . . . . . . . . Parts Restored . | . . . . . . . . . . . . . . . . . . . . . . . Kills | -11 -10 -9 -8 -8 -8 -7 -6 -6 -6 -5 -5 -5 -5 -5 -5 -5 -4 -3 -3 -2 -2 -2 ------- Run | Yrd Mat Mat Mat Gar Mat Fac Fac Was Fac Fac Was Fac Ext Cet Arc Hub Fac Res Tes Res Qua Frg Combat Hostiles Destroyed 127 | . 14 16 21 17 13 3 . . 6 . . . 5 . . . 6 . . 1 3 22 Melee 32 | . . . . . . 3 . . 2 . . . 1 . . . 2 . . 1 3 20 Guns 12 | . 11 1 . . . . . . . . . . . . . . . . . . . . Cannons 61 | . 3 15 19 12 12 . . . . . . . . . . . . . . . . . AOE 17 | . . . . 4 . . . . 4 . . . 4 . . . 4 . . . . 1 Classes Destroyed 18 | . 5 3 3 1 1 1 . . . . . . . . . . 1 . . . . 3 Worker 5 | . . 1 2 . . 2 . . . . . . . . . . . . . . . . Builder 7 | . . . 3 . 1 . . . . . . . . . . . 2 1 . . . . Tunneler 1 | . . . . . . . . . . . . . . . . . 1 . . . . . Hauler 18 | . 1 4 2 . 1 4 . . 1 . . . . . . 2 1 1 . . 1 . Recycler 11 | . 1 4 . . . 1 . . . 1 . . 2 . . . 1 1 . . . . Mechanic 1 | . . . . . . . . . . . . . . . . . . . . . . 1 Operator 22 | . 2 2 . . 1 1 1 . 1 1 . . 1 . 7 . 2 1 . 1 1 . Drone 8 | . . . . . . . . . . . . . . . . . . . . . . 8 Watcher 14 | . . . 1 . 1 2 . . 1 1 . . 1 . . 1 3 2 1 . . . Swarmer 26 | . 3 . 3 6 2 . . . 4 . . . 3 . . . 5 . . . . . Cutter 4 | . . . . 2 . . . . 2 . . . . . . . . . . . . . Grunt 63 | . 11 14 14 9 9 2 . . . . . . 1 . . . . . . . . 3 Brawler 1 | . . . . . 1 . . . . . . . . . . . . . . . . . Duelist 2 | . . 1 1 . . . . . . . . . . . . . . . . . . . Sentry 4 | . . 1 2 . . . . . . . . . 1 . . . . . . . . . Hunter 4 | . . . 1 . 1 . . . . . . . . . . . . . . . . 2 Programmer 12 | . . . . . . 1 . . . . . . . . . . 1 . . 1 3 6 Decapitator 2 | . . . . . . . . . . . . . . . . . . . . . . 2 V-Series 1 | . . . . . . . . . . . . . . . . . . . . . . 1 Best Kill Streak 8 | . 3 5 8 7 4 3 1 . 4 1 . . 5 . 4 1 4 2 1 1 3 4 Combat Bots Only 7 | . 3 5 3 7 3 1 . . 4 . . . 5 . . . 4 . . 1 3 4 Max Kills in Single Turn 4 | . 1 2 2 2 1 1 1 . 3 1 . . 4 . 1 1 3 1 1 1 1 1 Gunslinging . | . . . . . . . . . . . . . . . . . . . . . . . Exploded 4 | . . . . 2 . . . . 3 . . . 4 . . . 3 . . . . 1 Melee 1 | . . . . . . 1 . . 1 . . . 1 . . . 1 . . 1 1 1 Uniques/NPCs Destroyed . | . . . . . . . . . . . . . . . . . . . . . . . Combat | -11 -10 -9 -8 -8 -8 -7 -6 -6 -6 -5 -5 -5 -5 -5 -5 -5 -4 -3 -3 -2 -2 -2 -------- Run | Yrd Mat Mat Mat Gar Mat Fac Fac Was Fac Fac Was Fac Ext Cet Arc Hub Fac Res Tes Res Qua Frg Hostile Shots Fired 1133 | . 68 57 130 99 99 29 . . 22 11 . 3 10 . . 19 66 21 14 47 26 412 Missed 387 | . 13 15 43 33 27 14 . . 10 7 . 3 3 . . 11 33 10 5 20 14 126 Hits 746 | . 55 42 87 66 72 15 . . 12 4 . . 7 . . 8 33 11 9 27 12 286 Melee 26 | . . 2 . 1 . . . . 4 . . . . . . . . . . . . 19 Projectile 720 | . 55 40 87 65 72 15 . . 8 4 . . 7 . . 8 33 11 9 27 12 267 AOE 5 | . . . . 2 . . . . 1 . . . . . . . . . . . . 2 Critical Strikes 30 | . . . 3 6 1 . . . . . . . . . . . . 1 1 1 2 15 Actively Blocked 18 | . . . . . . . . . . . . . . . . . . . 1 . 2 15 Part Disruptions 3 | . . . . . . . . . . . . . . . . . . . . 2 . 1 Damage Taken 14956 | . 559 533 1411 1028 1154 250 . . 175 80 . . 137 . . 186 607 191 189 616 320 7520 Core 2149 | . 111 65 100 69 83 74 . . 14 . . . 38 . . 101 69 66 48 46 . 1265 Absorbed by Shields 107 | . . . . . . . . . . . . . 40 . . . . . . . . 67 Redirected to Shielding 456 | . 3 . . . . . . . . . . . . . . . . . . 39 . 414 Regen/Repaired (Parts) 4080 | . . . . . . 25 . . . . . . . . . . 615 310 . . 440 2690 Core Remaining (%) 83 | 100 55 83 . . 54 89 . . 98 . . . . . . 86 94 . 91 . . . Volleys Fired 402 | . 56 58 79 66 65 15 1 . 4 4 . . 29 . . . 5 18 . . . 2 Largest 2 | . 2 2 2 2 2 1 1 . 1 1 . . 1 . . . 1 1 . . . 1 Hottest 225 | . 70 136 136 136 136 5 5 . 43 5 . . 43 . . . 80 225 . . . 43 Shots Fired 717 | . 112 115 158 124 130 15 1 . 4 4 . . 29 . . . 5 18 . . . 2 Gun 133 | . 97 18 . . . . . . . . . . . . . . . 18 . . . . Cannon 522 | . 15 97 158 121 129 . . . . . . . . . . . 2 . . . . . Launcher 12 | . . . . 3 1 . . . 2 . . . 1 . . . 3 . . . . 2 Special 50 | . . . . . . 15 1 . 2 4 . . 28 . . . . . . . . . Kinetic 121 | . 109 12 . . . . . . . . . . . . . . . . . . . . Thermal 534 | . 3 103 158 121 129 . . . . . . . . . . . 2 18 . . . . Explosive 11 | . . . . 3 . . . . 2 . . . 1 . . . 3 . . . . 2 Electromagnetic 1 | . . . . . 1 . . . . . . . . . . . . . . . . . Robot Hit Streak 16 | . 7 16 10 10 13 4 3 . 5 9 . . 13 . . . 6 7 . . . 8 Robot Miss Streak 6 | . 3 4 6 4 3 2 . . . . . . 2 . . . . . . . . . Penetration Max . | . . . . . . . . . . . . . . . . . . . . . . . Secondary Targets 2 | . 2 . . . . . . . . . . . . . . . . . . . . . Max Gunslinging Chain 1 | . 1 . . . . . . . . . . . . . . . . . . . . . Shots Hit Robots 636 | . 72 77 89 60 86 41 4 . 12 7 . . 32 . 10 13 20 13 7 4 16 73 Core Hits 271 | . 35 31 45 26 27 10 1 . 8 3 . . 11 . 5 3 19 5 3 2 6 31 Critical Kills 5 | . 1 1 3 . . . . . . . . . . . . . . . . . . . Critical Parts Destroyed . | . . . . . . . . . . . . . . . . . . . . . . . Critical Strikes 25 | . 3 1 3 . . 5 . . . . . . 2 . 1 1 1 . 1 1 2 4 Burn 1 | . 1 . . . . . . . . . . . . . . . . . . . . . Meltdown 4 | . . 1 3 . . . . . . . . . . . . . . . . . . . Destroy 1 | . 1 . . . . . . . . . . . . . . . . . . . . . Blast 1 | . 1 . . . . . . . . . . . . . . . . . . . . . Sever 15 | . . . . . . 5 . . . . . . . . . 1 1 . 1 1 2 4 Impale 3 | . . . . . . . . . . . . . 2 . 1 . . . . . . . Melee Attacks 485 | . . . . . . 55 5 . 32 10 . 6 12 . 10 20 92 48 28 16 37 114 Impact . | . . . . . . . . . . . . . . . . . . . . . . . Slashing 429 | . . . . . . 55 5 . 21 . . . 4 . 9 17 78 45 28 16 37 114 Piercing 56 | . . . . . . . . . 11 10 . 6 8 . 1 3 14 3 . . . . Sneak Attacks 50 | . . . . . . 9 . . 1 2 . . 6 . 8 1 9 3 . 1 2 8 Combat Hostiles 3 | . . . . . . . . . . . . . 2 . . . . . . . . 1 Follow-up Attacks 21 | . . . . . . . . . . . . . . . 1 2 2 2 1 1 5 7 Damage Inflicted 23694 | . 890 1483 2070 1534 1865 2172 129 . 828 208 . . 1147 . 998 622 1859 776 611 318 1072 5112 Guns 885 | . 727 139 . . . . . . . . . . . . . . . 19 . . . . Cannons 6689 | . 163 1344 2069 1248 1865 . . . . . . . . . . . . . . . . . Explosions 1938 | . . . . 286 . . . . 426 . . . 488 . . . 468 . . . . 270 Melee 14181 | . . . . . . 2172 129 . 402 208 . . 659 . 998 622 1391 757 611 318 1072 4842 Ramming 1 | . . . 1 . . . . . . . . . . . . . . . . . . . Kinetic 997 | . 864 133 . . . . . . . . . . . . . . . . . . . . Thermal 6577 | . 26 1350 2069 1248 1865 . . . . . . . . . . . . 19 . . . . Explosive 1938 | . . . . 286 . . . . 426 . . . 488 . . . 468 . . . . 270 Electromagnetic . | . . . . . . . . . . . . . . . . . . . . . . . Impact . | . . . . . . . . . . . . . . . . . . . . . . . Slashing 13239 | . . . . . . 2172 129 . 272 . . . 318 . 924 552 1336 693 611 318 1072 4842 Piercing 942 | . . . . . . . . . 130 208 . . 341 . 74 70 55 64 . . . . Highest Corruption 68 | . . . . . . . . 8 8 . 6 6 6 6 6 2 . . . 1 2 68 Average Corruption 9 | . . . . . . . . 8 8 . 6 6 6 6 5 1 . . . 1 1 19 Corruption Purged 6 | . . . . . . . . . . . . . . . 6 . . . . . . . Corruption Blocked . | . . . . . . . . . . . . . . . . . . . . . . . Effects 109 | . . . . . . . . . 18 . . 5 28 9 5 1 . . . 1 2 40 Message Errors 27 | . . . . . . . . . 7 . . 1 5 3 . 1 . . . 1 1 8 Matter Fused 28 | . . . . . . . . . 4 . . . 8 2 2 . . . . . 1 11 Heat Flow Errors 10 | . . . . . . . . . 2 . . 2 1 . . . . . . . . 5 Energy Discharges 13 | . . . . . . . . . . . . 2 4 . 2 . . . . . . 5 Parts Rejected 1 | . . . . . . . . . . . . . . . . . . . . . . 1 Parts Fused 1 | . . . . . . . . . . . . . 1 . . . . . . . . . Data Loss (minor) 14 | . . . . . . . . . 4 . . . 4 3 1 . . . . . . 2 Data Loss (major) 6 | . . . . . . . . . 1 . . . 4 1 . . . . . . . . Alerts 4 | . . . . . . . . . . . . . 1 . . . . . . . . 3 Misdirections 5 | . . . . . . . . . . . . . . . . . . . . . . 5 Overload Shots 1 | . . . . . . . . . . . . . . . . . . 1 . . . . Overflow Damage 2574 | . . . 6 51 19 320 18 . 41 . . . 223 . 346 33 329 243 105 6 170 664 Projectiles 38 | . . . 6 13 19 . . . . . . . . . . . . . . . . . Explosions 112 | . . . . 38 . . . . 20 . . . 16 . . . 38 . . . . . Melee 2424 | . . . . . . 320 18 . 21 . . . 207 . 346 33 291 243 105 6 170 664 Knockbacks 4 | . 4 . . . . . . . . . . . . . . . . . . . . . Impact . | . . . . . . . . . . . . . . . . . . . . . . . Kinetic 4 | . 4 . . . . . . . . . . . . . . . . . . . . . Secondary . | . . . . . . . . . . . . . . . . . . . . . . . Self-Inflicted Damage 41 | . . . . 15 10 . . . . . . . . . . . . . . . . 16 Shots 3 | . . . . 1 1 . . . . . . . . . . . . . . . . 1 Rammed 2 | . 1 . 1 . . . . . . . . . . . . . . . . . . . Targets Rammed 2 | . 1 . 1 . . . . . . . . . . . . . . . . . . . Kicked . | . . . . . . . . . . . . . . . . . . . . . . . Crushed . | . . . . . . . . . . . . . . . . . . . . . . . Highest Temperature 357 | . 6 302 294 246 317 2 . . 194 27 . 231 206 . . 27 67 254 129 357 250 208 Average Temperature 76 | . 4 71 87 95 81 2 . . 80 15 . 125 90 . . 13 8 50 62 119 106 91 Received Heat Transfer 2876 | . 213 240 594 567 567 57 . . . 36 . . 17 . . 9 30 48 9 36 9 444 Effects 11 | . . 1 4 3 . . . . . . . . . . . . . . . 2 . 1 Shutdowns 1 | . . . . . . . . . . . . . . . . . . . . 1 . . Energy Bleed 3 | . . 1 1 . . . . . . . . . . . . . . . . 1 . . Interference 7 | . . . 3 3 . . . . . . . . . . . . . . . . . 1 Siege Activations . | . . . . . . . . . . . . . . . . . . . . . . . Martial Activations . | . . . . . . . . . . . . . . . . . . . . . . . Shielding Activations . | . . . . . . . . . . . . . . . . . . . . . . . Robots Disrupted . | . . . . . . . . . . . . . . . . . . . . . . . Combat Hostiles . | . . . . . . . . . . . . . . . . . . . . . . . Robots Corrupted . | . . . . . . . . . . . . . . . . . . . . . . . Combat Hostiles . | . . . . . . . . . . . . . . . . . . . . . . . Parts Fried . | . . . . . . . . . . . . . . . . . . . . . . . Impact Corruptions . | . . . . . . . . . . . . . . . . . . . . . . . Robots Melted 6 | . . 1 3 1 1 . . . . . . . . . . . . . . . . . Combat Hostiles 4 | . . . 2 1 1 . . . . . . . . . . . . . . . . . Parts Melted 32 | . . 5 14 4 9 . . . . . . . . . . . . . . . . . Heat Transferred 12136 | . 148 2590 3737 2257 3367 . . . . . . . . . . . . 37 . . . . Parts Sabotaged . | . . . . . . . . . . . . . . . . . . . . . . . Parts Stolen . | . . . . . . . . . . . . . . . . . . . . . . . Parts Stripped . | . . . . . . . . . . . . . . . . . . . . . . . Power Chain Reactions . | . . . . . . . . . . . . . . . . . . . . . . . Alert | -11 -10 -9 -8 -8 -8 -7 -6 -6 -6 -5 -5 -5 -5 -5 -5 -5 -4 -3 -3 -2 -2 -2 ------- Run | Yrd Mat Mat Mat Gar Mat Fac Fac Was Fac Fac Was Fac Ext Cet Arc Hub Fac Res Tes Res Qua Frg Maximum Alert Level 2 | . . 1 1 2 1 1 . . . . . . 1 . . 2 1 . . . . . Low Security (%) 85 | 100 100 73 97 18 67 87 100 100 100 100 100 100 83 100 100 57 84 100 100 100 100 100 Level 1 10 | . . 26 2 23 32 12 . . . . . . 16 . . 27 15 . . . . . Level 2 4 | . . . . 57 . . . . . . . . . . . 15 . . . . . . Level 3 . | . . . . . . . . . . . . . . . . . . . . . . . Level 4 . | . . . . . . . . . . . . . . . . . . . . . . . Level 5 . | . . . . . . . . . . . . . . . . . . . . . . . High Security . | . . . . . . . . . . . . . . . . . . . . . . . Max Security . | . . . . . . . . . . . . . . . . . . . . . . . Peak Influence 645 | . 70 258 207 645 313 239 109 36 117 109 32 30 249 106 199 508 336 63 162 112 118 171 Initial 313 | . . 2 90 117 313 71 109 36 18 47 32 15 . 24 . 51 248 1 . 63 63 12 Average 103 | . 23 92 124 402 175 88 105 33 51 47 31 13 88 40 133 223 99 12 83 61 39 44 Influence Increases 8127 | . 379 587 627 538 382 492 5 . 312 176 . 47 899 141 309 737 708 235 279 189 424 661 Destroy 0b10 Robot/C 3140 | . 280 320 420 340 260 60 . . 120 . . . 500 80 80 140 120 . . 20 60 340 Destroy 0b10 Robot/NC 460 | . 20 55 40 . 20 50 5 . 15 15 . . 35 5 45 15 50 30 10 5 10 35 Destroy Leader 556 | . 62 78 96 20 64 22 . . 24 2 . . 44 . . 46 28 6 2 10 2 50 Allied During Kill 544 | . . . . . . . . . . . . . 201 50 125 168 . . . . . . Trap Triggered on 0b10 90 | . . . . . . 60 . . . . . . . . . . . . . . 30 . Successful Hack 507 | . . 12 6 . 8 58 . . 59 27 . 15 14 . . . 54 91 39 28 61 35 Select Force Hacks 270 | . . 60 . . . 30 . . . . . . 30 . . 150 . . . . . . Disable Machine 390 | . . . 30 . 30 . . . 15 . . 30 . . 15 30 30 15 45 . 45 105 Anti-Garrison Action 100 | . . . . 100 . . . . . . . . . . . . . . . . . . Destroy Structure 450 | . 2 2 5 48 . 17 . . 34 12 . 2 30 6 14 38 126 48 18 21 21 6 Partial Spotted 435 | . 15 . . . . 60 . . 30 30 . . 15 . 30 45 60 45 . 15 45 45 Lose Combat Pursuer 1185 | . . 60 30 30 . 135 . . 15 90 . . 30 . . 105 240 . 165 90 150 45 Influence Decreases 7972 | . 372 379 661 74 870 425 125 78 240 181 71 67 858 184 160 378 1213 237 168 189 514 528 Entered New Map 1412 | . . 5 125 64 332 86 115 68 8 51 61 7 2 19 . 98 260 2 1 49 49 10 Time Decay 4775 | . 362 364 536 . 368 339 10 10 221 130 10 60 374 141 140 150 493 235 157 120 227 328 Lost Part 270 | . 10 10 . 10 20 . . . 10 . . . . . . . 10 . . 20 . 180 Lost Ally 456 | . . . . . . . . . 1 . . . 251 24 20 130 . . 10 . 10 10 Purge Threat 1059 | . . . . . 150 . . . . . . . 231 . . . 450 . . . 228 . Squads Dispatched 62 | . 3 3 3 . 2 8 . . 4 2 . . 3 . . 4 8 9 4 2 3 4 Investigation 25 | . . 2 2 . . 3 . . 1 1 . . 2 . . 3 5 4 1 1 . . Extermination 16 | . . . . . . 2 . . 1 . . . . . . . 3 2 2 1 2 3 Reinforcement 21 | . 3 1 1 . 2 3 . . 2 1 . . 1 . . 1 . 3 1 . 1 1 Assault . | . . . . . . . . . . . . . . . . . . . . . . . Garrison . | . . . . . . . . . . . . . . . . . . . . . . . Intercept . | . . . . . . . . . . . . . . . . . . . . . . . Searches Triggered . | . . . . . . . . . . . . . . . . . . . . . . . Unchained Authorized 2 | . . . . . . . . . . . . . . . . . . . 1 1 . . Construction Impeded 2 | . . . 1 . 1 . . . . . . . . . . . . . . . . . Haulers Reinforced 5 | . . . . . . 3 . . . . . . . . . 1 . 1 . . . . Active Scanning Responses . | . . . . . . . . . . . . . . . . . . . . . . . Cargo Convoy Interrupts . | . . . . . . . . . . . . . . . . . . . . . . . Stealth | -11 -10 -9 -8 -8 -8 -7 -6 -6 -6 -5 -5 -5 -5 -5 -5 -5 -4 -3 -3 -2 -2 -2 --------- Run | Yrd Mat Mat Mat Gar Mat Fac Fac Was Fac Fac Was Fac Ext Cet Arc Hub Fac Res Tes Res Qua Frg Distress Signals 26 | . 1 2 2 . 1 . . . 1 1 . . 2 1 . . 2 2 2 4 1 4 Communications Jammed . | . . . . . . . . . . . . . . . . . . . . . . . Distress Signals . | . . . . . . . . . . . . . . . . . . . . . . . Times Spotted 456 | . 28 21 35 19 17 23 1 6 14 18 5 10 31 5 4 14 39 18 21 34 22 71 Peak Tracking Total 26 | . 5 5 5 9 3 6 1 6 5 9 5 6 8 3 1 10 9 8 9 26 7 18 Tactical Retreats 63 | . . 3 2 1 . 8 . . 2 3 . 1 3 . . 2 12 4 4 5 4 9 ECM-based Alert Blocks 93 | . . . . . . 5 . . 1 3 . 5 4 . . . 22 15 . 7 1 30 Traps | -11 -10 -9 -8 -8 -8 -7 -6 -6 -6 -5 -5 -5 -5 -5 -5 -5 -4 -3 -3 -2 -2 -2 ------- Run | Yrd Mat Mat Mat Gar Mat Fac Fac Was Fac Fac Was Fac Ext Cet Arc Hub Fac Res Tes Res Qua Frg Traps Triggered 24 | . 3 . 2 2 . 2 1 . . 1 . . 1 . . . 5 2 . . . 5 Indirectly . | . . . . . . . . . . . . . . . . . . . . . . . Trap Hack Attempts . | . . . . . . . . . . . . . . . . . . . . . . . Triggered . | . . . . . . . . . . . . . . . . . . . . . . . Disarmed 6 | . . . . . . . . . . . . . . . . . 6 . . . . . Reprogrammed 10 | . . . . . . . . . . . . . . . . . . . . . 10 . Reused 3 | . . . . . . . . . . . . . . . . . . . . . 3 . Traps Extracted . | . . . . . . . . . . . . . . . . . . . . . . . Installed . | . . . . . . . . . . . . . . . . . . . . . . . Triggered 9 | . . . . . . 6 . . . . . . . . . . . . . . 3 . Machines | -11 -10 -9 -8 -8 -8 -7 -6 -6 -6 -5 -5 -5 -5 -5 -5 -5 -4 -3 -3 -2 -2 -2 ---------- Run | Yrd Mat Mat Mat Gar Mat Fac Fac Was Fac Fac Was Fac Ext Cet Arc Hub Fac Res Tes Res Qua Frg Machines Disabled 30 | . . . 2 2 2 . . . 1 . . 2 . . 1 2 2 1 4 . 3 8 Max in Single Turn 1 | . . . 1 1 1 . . . 1 . . 1 . . . 1 1 1 1 . 1 1 Garrison Access 11 | . . . . . . 2 . . . 1 . 1 . . . 1 1 1 . 2 1 1 Garrison Relay 2 | . . . . 2 . . . . . . . . . . . . . . . . . . Network Hub 3 | . . . . . . . . . . . . . . . . 3 . . . . . . Machines Repaired . | . . . . . . . . . . . . . . . . . . . . . . . Machines Dismantled . | . . . . . . . . . . . . . . . . . . . . . . . Machines Sabotaged 3 | . . . . . . . . . . . . . . . . 3 . . . . . . Overloaded Fab Kills . | . . . . . . . . . . . . . . . . . . . . . . . Hacking | -11 -10 -9 -8 -8 -8 -7 -6 -6 -6 -5 -5 -5 -5 -5 -5 -5 -4 -3 -3 -2 -2 -2 --------- Run | Yrd Mat Mat Mat Gar Mat Fac Fac Was Fac Fac Was Fac Ext Cet Arc Hub Fac Res Tes Res Qua Frg Machines Accessed 121 | . 3 4 6 . 3 11 2 . 10 3 . 3 13 1 . 6 17 12 8 6 10 3 Terminals 70 | . 2 2 2 . 2 4 1 . 8 1 . 1 12 1 . 5 7 6 5 3 6 2 Fabricators 11 | . . . . . . . 1 . 1 1 . . . . . . 4 3 1 . . . Repair Stations 11 | . 1 . 1 . . 3 . . . . . . . . . . 2 2 . . 2 . Recycling Units 6 | . . 2 . . . 1 . . . . . . 1 . . . 2 . . . . . Scanalyzers 11 | . . . 2 . 1 1 . . 1 . . 1 . . . . 1 . 2 1 1 . Garrison Access 12 | . . . 1 . . 2 . . . 1 . 1 . . . 1 1 1 . 2 1 1 Total Hacks 409 | . 5 9 23 . 7 25 7 . 26 6 . 5 27 1 . 9 81 53 29 17 61 18 Successful 261 | . 2 5 14 . 3 17 2 . 15 5 . 3 19 1 . 5 63 43 13 10 33 8 Failed 144 | . 3 4 8 . 3 7 5 . 11 1 . 2 7 . . 4 18 10 16 7 28 10 Catastrophic 25 | . 1 . . . 2 . 1 . 1 . . . . . . . 5 4 3 3 5 . Database Lockouts 4 | . . . 1 . 1 1 . . . . . . 1 . . . . . . . . . Manual 194 | . 2 7 3 . 5 7 4 . 14 2 . 2 10 1 . 8 33 30 10 11 33 12 Terminals 256 | . 2 7 5 . 5 10 5 . 23 2 . 2 26 1 . 8 37 31 17 13 45 17 Fabricators 39 | . . . . . . . 2 . 1 2 . . . . . . 13 15 6 . . . Repair Stations 58 | . 3 . 5 . . 7 . . . . . . . . . . 24 6 . . 13 . Recycling Units 7 | . . 2 . . . 2 . . . . . . 1 . . . 2 . . . . . Scanalyzers 35 | . . . 12 . 2 3 . . 2 . . 2 . . . . 4 . 6 2 2 . Garrison Access 14 | . . . 1 . . 3 . . . 2 . 1 . . . 1 1 1 . 2 1 1 Terminal Hacks 111 | . . 2 . . 2 6 2 . 11 1 . 1 17 1 . 1 21 15 4 4 18 5 Part Schematic 7 | . . . . . . . . . . . . . . . . . 2 5 . . . . Robot Analysis 4 | . . . . . . . . . 1 . . . 1 . . . . . . . 1 1 Prototype ID Bank 2 | . . . . . . 1 . . . . . . . . . . 1 . . . . . Open Door 11 | . . . . . . . . . . . . . 9 1 . . . . . 1 . . Level Access Points 7 | . . . . . 1 1 . . 1 . . . . . . . 1 1 . . 1 1 Branch Access Points 6 | . . . . . . . 1 . 1 1 . 1 . . . . . 1 . 1 . . Emergency Access Points 2 | . . . . . . . . . . . . . . . . . . . . . 1 1 Machine Index 4 | . . . . . . . . . . . . . . . . . 1 1 . . 1 1 Terminal Index 3 | . . . . . . . . . . . . . . . . 1 . 1 . 1 . . Fabricator Index 1 | . . . . . . . . . . . . . . . . . . . . 1 . . Alert Level 1 | . . . . . . . . . 1 . . . . . . . . . . . . . Unreport Threat 9 | . . . . . 1 . . . . . . . 2 . . . 3 . . . 3 . Locate Traps 5 | . . . . . . . . . 1 . . . 1 . . . 2 . . . 1 . Disarm Traps 1 | . . . . . . . . . . . . . . . . . 1 . . . . . Reprogram Traps 3 | . . . . . . . . . . . . . . . . . . . . . 3 . Transport Status 2 | . . 1 . . . . . . . . . . . . . . . . . . 1 . Recall Investigation 7 | . . . . . . . . . . . . . 2 . . . 5 . . . . . Recall Extermination 8 | . . . . . . . . . 1 . . . . . . . 3 1 2 . 1 . Recall Reinforcements 5 | . . . . . . . . . 1 . . . 1 . . . . 1 1 . 1 . Hauler Manifests 7 | . . 1 . . . 1 1 . 1 . . . . . . . 1 1 . . 1 . Registered Components 3 | . . . . . . 1 . . 1 . . . . . . . . . . . 1 . Registered Prototypes 6 | . . . . . . 1 . . 2 . . . 1 . . . 1 1 . . . . Zone Layout 6 | . . . . . . 1 . . . . . . . . . . . 2 . . 2 1 Protovariant Controls 1 | . . . . . . . . . . . . . . . . . . . 1 . . . Fabricator Hacks 24 | . . . . . . . . . 1 1 . . . . . . 9 10 3 . . . Network Status 1 | . . . . . . . . . . . . . . . . . . 1 . . . . Load Schematic 15 | . . . . . . . . . . 1 . . . . . . 6 6 2 . . . Build 8 | . . . . . . . . . 1 . . . . . . . 3 3 1 . . . Repair Station Hacks 45 | . 1 . 3 . . 5 . . . . . . . . . . 21 6 . . 9 . Scan Component 25 | . 1 . 2 . . 3 . . . . . . . . . . 11 3 . . 5 . Repair 20 | . . . 1 . . 2 . . . . . . . . . . 10 3 . . 4 . Recycling Unit Hacks 2 | . . . . . . . . . . . . . . . . . 2 . . . . . Retrieve Components 2 | . . . . . . . . . . . . . . . . . 2 . . . . . Scanalyzer 27 | . . . 10 . 1 2 . . 2 . . 1 . . . . 4 . 3 2 2 . Insert Component 8 | . . . 3 . . . . . . . . . . . . . 1 . 2 . 2 . Analyze 3 | . . . 2 . . . . . . . . . . . . . 1 . . . . . Retrieve Study 16 | . . . 5 . 1 2 . . 2 . . 1 . . . . 2 . 1 2 . . Garrison Access Hacks 14 | . . . 1 . . 3 . . . 2 . 1 . . . 1 1 1 . 2 1 1 Unlock Access 1 | . . . 1 . . . . . . . . . . . . . . . . . . . Seal Access 11 | . . . . . . 2 . . . 1 . 1 . . . 1 1 1 . 2 1 1 Coupler Status 2 | . . . . . . 1 . . . 1 . . . . . . . . . . . . Unauthorized Hacks 38 | . 1 3 . . . 1 . . 1 1 . . 2 . . 3 5 11 3 2 3 2 Terminals 22 | . 1 1 . . . . . . 1 . . . 1 . . 3 1 6 1 2 3 2 Track 1 | . . . . . . . . . . . . . . . . . . 1 . . . . Assimilate 6 | . . . . . . . . . . . . . 1 . . . . . 1 1 2 1 Botnet 7 | . . . . . . . . . 1 . . . . . . . 1 2 . 1 1 1 Disrupt 1 | . . . . . . . . . . . . . . . . . . 1 . . . . Operators 3 | . 1 1 . . . . . . . . . . . . . . . 1 . . . . Skim 1 | . . . . . . . . . . . . . . . . . . 1 . . . . Sabotage 3 | . . . . . . . . . . . . . . . . 3 . . . . . . Fabricators 12 | . . . . . . . . . . 1 . . . . . . 4 5 2 . . . Prioritize 3 | . . . . . . . . . . . . . . . . . . 2 1 . . . Recompile 9 | . . . . . . . . . . 1 . . . . . . 4 3 1 . . . Repair Stations . | . . . . . . . . . . . . . . . . . . . . . . . Recycling Units 4 | . . 2 . . . 1 . . . . . . 1 . . . . . . . . . Tunnel 4 | . . 2 . . . 1 . . . . . . 1 . . . . . . . . . Scanalyzers . | . . . . . . . . . . . . . . . . . . . . . . . Garrison Access . | . . . . . . . . . . . . . . . . . . . . . . . Data Cores Recovered 8 | . . . . . . 1 1 . 1 . . . . . . 1 2 . . 1 1 . Used 6 | . . . . . . . . . 1 . . . . . . 1 2 . . 1 1 . Hacking Detections 75 | . 2 2 4 . 3 8 2 . 8 3 . 2 5 2 . 2 7 7 6 2 8 2 Full Trace Events 5 | . . . 1 . . 1 . . 1 . . . 1 . . . . . . 1 . . Feedback Events . | . . . . . . . . . . . . . . . . . . . . . . . Feedback Blocked . | . . . . . . . . . . . . . . . . . . . . . . . Robot Schematics Acquired . | . . . . . . . . . . . . . . . . . . . . . . . Robots Built 4 | . . . . . . . . . 4 . . . . . . . . . . . . . Authchips . | . . . . . . . . . . . . . . . . . . . . . . . Time 134 | . . . . . . . . . 134 . . . . . . . . . . . . . Total Robot Build Rating 16 | . . . . . . . . . 16 . . . . . . . . . . . . . Part Schematics Acquired 10 | . . . 2 . . . . . . . . . . . . . 3 5 . . . . Parts Built 7 | . . . . . . . . . . . . . . . . . 3 3 1 . . . Authchips 7 | . . . . . . . . . . . . . . . . . 3 3 1 . . . Time 594 | . . . . . . . . . . . . . . . . . 362 195 37 . . . Total Part Build Rating 43 | . . . . . . . . . . . . . . . . . 13 21 9 . . . Part Studies Acquired 16 | . . . 5 . 1 2 . . 2 . . 1 . . . . 2 . 1 2 . . Parts Repaired 20 | . . . 1 . . 2 . . . . . . . . . . 10 3 . . 4 . Time 677 | . . . 76 . . 62 . . . . . . . . . . 295 90 . . 154 . Parts Recycled . | . . . . . . . . . . . . . . . . . . . . . . . Recycled Matter . | . . . . . . . . . . . . . . . . . . . . . . . Retrieved Matter . | . . . . . . . . . . . . . . . . . . . . . . . Retrieved Components 9 | . . . . . . . . . . . . . . . . . 9 . . . . . Parts Scanalyzed 3 | . . . 2 . . . . . . . . . . . . . 1 . . . . . Part Schematics Acquired 3 | . . . 2 . . . . . . . . . . . . . 1 . . . . . Parts Damaged 2 | . . . 2 . . . . . . . . . . . . . . . . . . . Bothacking | -11 -10 -9 -8 -8 -8 -7 -6 -6 -6 -5 -5 -5 -5 -5 -5 -5 -4 -3 -3 -2 -2 -2 ------------ Run | Yrd Mat Mat Mat Gar Mat Fac Fac Was Fac Fac Was Fac Ext Cet Arc Hub Fac Res Tes Res Qua Frg Used RIF Installer 1 | . . . . 1 . . . . . . . . . . . . . . . . . . Robots Hacked 12 | . . . . . . 5 1 . 1 3 . . 2 . . . . . . . . . Non-combat 11 | . . . . . . 5 1 . 1 3 . . 1 . . . . . . . . . Combat 1 | . . . . . . . . . . . . . 1 . . . . . . . . . Robot Hacks Applied 16 | . . . . . . 9 1 . 1 3 . . 2 . . . . . . . . . parse_system 2 | . . . . . . 1 . . . . . . 1 . . . . . . . . . drop_inventory 6 | . . . . . . 3 . . . 2 . . 1 . . . . . . . . . locate_traps 1 | . . . . . . 1 . . . . . . . . . . . . . . . . reprogram_traps 3 | . . . . . . 3 . . . . . . . . . . . . . . . . block_reporting 1 | . . . . . . . . . 1 . . . . . . . . . . . . . summon_haulers 3 | . . . . . . 1 1 . . 1 . . . . . . . . . . . . Relay Couplers Released 17 | . . . . 9 . . . . . . . 3 . . . 2 3 . . . . . Machine Destruction 17 | . . . . 9 . . . . . . . 3 . . . 2 3 . . . . . Attached 2 | . . . . . . 1 1 . . . . . . . . . . . . . . . Fabnet Peak Effective % . | . . . . . . . . . . . . . . . . . . . . . . . Robots Rewired 15 | . . . . . . . . . . . . . 15 . . . . . . . . . Allies Hacked . | . . . . . . . . . . . . . . . . . . . . . . . Hacks Repelled . | . . . . . . . . . . . . . . . . . . . . . . . Allies | -11 -10 -9 -8 -8 -8 -7 -6 -6 -6 -5 -5 -5 -5 -5 -5 -5 -4 -3 -3 -2 -2 -2 -------- Run | Yrd Mat Mat Mat Gar Mat Fac Fac Was Fac Fac Was Fac Ext Cet Arc Hub Fac Res Tes Res Qua Frg Total Allies 39 | . . . . . . . . . 4 . . . 27 5 . . . . 1 . 1 1 Largest Group 12 | . . . . . . . . . 3 . . . 9 12 12 9 . . 1 . 1 1 Highest-Rated Group 810 | . . . . . . . . . 36 . . . 401 810 810 597 . . 10 . 26 10 Highest-Rated Ally 159 | . . . . . . . . . 12 . . . 159 159 159 96 . . 10 . 26 10 Total Orders 3 | . . . . . . . . . . . . . . 2 . 1 . . . . . . STAY 1 | . . . . . . . . . . . . . . . . 1 . . . . . . FOLLOW 1 | . . . . . . . . . . . . . . 1 . . . . . . . . AID 1 | . . . . . . . . . . . . . . 1 . . . . . . . . Ally Attacks 293 | . . . . . . . . . 16 . . . 142 35 39 61 . . . . . . Total Damage 7712 | . . . . . . . . . 200 . . . 3146 734 1473 2159 . . . . . . Kills 44 | . . . . . . . . . 1 . . . 23 5 7 8 . . . . . . Allies Corrupted 5 | . . . . . . . . . . . . . 1 . . 4 . . . . . . Allies Melted . | . . . . . . . . . . . . . . . . . . . . . . . Intel | -11 -10 -9 -8 -8 -8 -7 -6 -6 -6 -5 -5 -5 -5 -5 -5 -5 -4 -3 -3 -2 -2 -2 ------- Run | Yrd Mat Mat Mat Gar Mat Fac Fac Was Fac Fac Was Fac Ext Cet Arc Hub Fac Res Tes Res Qua Frg Active Infowar (turns) 7114 | . . . . . . 644 29 25 533 268 20 134 1115 332 287 314 1332 849 304 224 4 700 Sensors 7022 | . . . . . . 625 29 25 488 268 20 134 1115 332 287 314 1332 849 304 220 . 680 Machine Analysis 93 | . . . . . . 93 . . . . . . . . . . . . . . . . ECM 1441 | . . . . . . 17 . . 45 67 . 5 72 . . . 371 363 . 91 4 406 Robot Analysis Total 4 | . . . . . . . . . 1 . . . 1 . . . . . . . 1 1 Derelict Logs Recovered . | . . . . . . . . . . . . . . . . . . . . . . . Drone Launches . | . . . . . . . . . . . . . . . . . . . . . . . Drone Recoveries . | . . . . . . . . . . . . . . . . . . . . . . . Exploration | -11 -10 -9 -8 -8 -8 -7 -6 -6 -6 -5 -5 -5 -5 -5 -5 -5 -4 -3 -3 -2 -2 -2 ------------- Run | Yrd Mat Mat Mat Gar Mat Fac Fac Was Fac Fac Was Fac Ext Cet Arc Hub Fac Res Tes Res Qua Frg Turns Passed 14127 | 8 1257 1096 1570 938 857 938 33 25 570 268 20 137 1117 332 287 314 1351 849 325 242 511 1082 Spaces Moved 14882 | 7 453 326 513 336 299 1572 59 98 1202 426 84 413 1026 211 181 472 2265 1362 730 685 1088 1074 Core 60 | . 53 . . . . . . . . . . . . . . . . . . . . 7 Treads 1641 | . 400 64 513 336 299 20 . . . . . . . . . . . . . . . 9 Legs 88 | 7 . 64 . . . . . . . . . . . . . . . . . . . 17 Wheels 198 | . . 198 . . . . . . . . . . . . . . . . . . . . Hover 22 | . . . . . . . . . . . . . . . . . . . . . . 22 Flight 12873 | . . . . . . 1552 59 98 1202 426 84 413 1026 211 181 472 2265 1362 730 685 1088 1019 Fastest Speed 11 | 120 50 215 210 210 210 26 26 23 23 20 20 21 25 25 25 21 17 15 15 11 13 13 Average Speed 51 | 120 227 252 233 211 212 30 26 25 25 23 23 24 25 25 25 24 22 27 26 22 24 30 Slowest Speed 570 | 120 480 570 250 214 214 213 26 26 26 24 24 25 25 25 25 25 97 32 28 27 26 250 Overloaded Moves 543 | . . . . . . . . 9 8 37 4 5 . . . 38 85 28 40 111 22 156 Propulsion Burnouts . | . . . . . . . . . . . . . . . . . . . . . . . Robots Hopped 96 | . . . . . . 13 . . 2 1 . . 14 . . 3 10 19 5 19 2 8 Potential Cave-ins 2 | . . . . . . . . . . . . . . . . . . 2 . . . . Cave-ins Triggered . | . . . . . . . . . . . . . . . . . . . . . . . Teleports 2 | . . . . . . . . . . . . . . . . . . . . . . 2 Exploration Rate (%) 43 | 2 57 22 46 42 24 35 3 91 33 10 77 11 82 76 81 31 41 34 78 27 79 28 Regions Visited 22 Branch Regions 7 Pre-discovered Areas 4 | . . 2 . . . 1 . . . . . . 1 . . . . . . . . . Known Exits Taken 14 | . . . 1 . 1 1 . . 1 . . 1 1 1 1 1 1 1 1 1 1 . Unknown Exits Taken 3 | 1 1 1 . . . . . . . . . . . . . . . . . . . . Scrap Searched . | . . . . . . . . . . . . . . . . . . . . . . . Spaces Dug 181 | . . . . 5 . 17 . . 27 6 . 1 16 . . 3 58 23 9 7 7 2 Terrain Destroyed 213 | . . . . 21 . 17 . . 32 6 . 1 16 . . 3 63 29 9 7 7 2 Melee 146 | . . . . . . 17 . . 20 6 . 1 1 . . 3 50 23 9 7 7 2 Projectile 6 | . . . . . . . . . . . . . . . . . . 6 . . . . AOE 61 | . . . . 21 . . . . 12 . . . 15 . . . 13 . . . . . Terrain Rammed . | . . . . . . . . . . . . . . . . . . . . . . . Walls Destroyed . | . . . . . . . . . . . . . . . . . . . . . . . Machines Disabled . | . . . . . . . . . . . . . . . . . . . . . . . Actions | -11 -10 -9 -8 -8 -8 -7 -6 -6 -6 -5 -5 -5 -5 -5 -5 -5 -4 -3 -3 -2 -2 -2 --------- Run | Yrd Mat Mat Mat Gar Mat Fac Fac Was Fac Fac Was Fac Ext Cet Arc Hub Fac Res Tes Res Qua Frg Total 19850 | 6 576 496 746 446 392 1902 68 97 1399 570 83 436 1829 488 406 639 2968 1732 819 735 1305 1712 Wait 3406 | . 8 26 86 13 5 188 . . 128 116 . 1 743 272 209 152 520 292 39 46 156 406 Move 14685 | 6 452 325 513 334 298 1547 59 97 1197 424 83 412 999 210 180 465 2244 1324 719 655 1083 1059 Hop 81 | . . . . . . 11 . . 2 1 . . 12 . . 3 10 18 5 10 2 7 Pick Up 165 | . 22 29 21 9 4 15 . . 6 4 . 3 3 . 1 1 14 5 7 1 9 11 Fast Attach 133 | . 14 8 4 2 4 9 . . 5 . . 3 1 1 2 . 29 12 8 2 9 20 Attach 57 | . 5 2 5 2 3 7 2 . 1 2 . . 1 . . . 7 5 1 2 3 9 Detach 31 | . 1 1 . . . 2 . . 2 . . 1 . . 1 . 6 5 1 3 2 6 Swap 155 | . 4 15 8 6 5 22 1 . 12 6 . 5 10 3 2 . 24 5 6 5 3 13 Drop 210 | . 13 32 29 10 8 18 . . 10 3 . 5 4 2 2 1 22 7 12 1 10 21 Fire 402 | . 56 58 79 66 65 15 1 . 4 4 . . 29 . . . 5 18 . . . 2 Melee 426 | . . . . . . 53 5 . 32 10 . 6 12 . 9 17 77 41 21 10 28 105 Ram . | . . . . . . . . . . . . . . . . . . . . . . . Kick . | . . . . . . . . . . . . . . . . . . . . . . . Crush 2 | . 1 . 1 . . . . . . . . . . . . . . . . . . . Escape Stasis 97 | . . . . 4 . 15 . . . . . . 15 . . . 10 . . . . 53 Rewire . | . . . . . . . . . . . . . . . . . . . . . . . Trap . | . . . . . . . . . . . . . . . . . . . . . . . Miscellaneous . | . . . . . . . . . . . . . . . . . . . . . . . Route ------- -11/Scrapyard -10/Materials (discovered 2 exits: *Mat / [*Min]) -9/Materials -8/Materials (discovered 3 exits: *Fac / [*Sto] / Gar) -8/Garrison -8/Materials (discovered 3 exits: *Fac x3) -7/Factory (discovered 4 exits: *Fac x4) -6/Factory (discovered 2 exits: Low x2) -6/Waste -6/Factory (discovered 6 exits: *Fac x4 / Low x2) -5/Factory (discovered 4 exits: *Upp x2 / Ext x2) -5/Waste -5/Factory (discovered 4 exits: *Upp x2 / *Ext x2) -5/Extension (discovered 2 exits: *Fac / *Cet) -5/Cetus (discovered 2 exits: *Fac / *Arc) -5/Archives (discovered 3 exits: *Fac / *Hub x2) -5/Hub_04(d) -4/Factory (discovered 5 exits: *Res x4 / *Upp) -3/Research (discovered 5 exits: *Res x3 / *Tes x2) -3/Testing -2/Research (discovered 2 exits: *Qua x2) -2/Quarantine (discovered 3 exits: *Acc / [*Sec] / *Frg) -2/Protoforge (discovered 1 exit: Acc) History --------- Turn | Location | Event 1 | -11/Scrapyard | Discovered new exit (range 3) 9 | -11/Scrapyard | Entered Materials 301 | -10/Materials | Build established: Mutant 429 | -10/Materials | Discovered new exit (range 13) 1095 | -10/Materials | Discovered new exit (range 6) 1266 | -10/Materials | Entered another Materials area 1266 | -9/Materials | Evolved 2 slots: Propulsion x1, Utility x1 1830 | -9/Materials | Build established: Scavenger-Mutant 2312 | -9/Materials | Discovered new exit (range 16) 2362 | -9/Materials | Entered another Materials area 2362 | -8/Materials | Evolved 2 slots: Utility x2 2479 | -8/Materials | Build established: Mutant 3066 | -8/Materials | Discovered new exit (range 16) 3289 | -8/Materials | Central database locked down 3628 | -8/Materials | Repaired Broken Imp. VTOL Module 3706 | -8/Materials | Discovered new exit (range 7) 3932 | -8/Materials | Identified exit to Garrison 3932 | -8/Materials | Entered Garrison 3982 | -8/Garrison | Triggered checkpoint 4109 | -8/Garrison | Garrison Relay disabled 4131 | -8/Garrison | Installed Relay Interface Framework 4266 | -8/Garrison | Triggered checkpoint 4373 | -8/Garrison | Destroyed 7 combat bots 4424 | -8/Garrison | Triggered checkpoint 4577 | -8/Garrison | Discovered new exit (range 12) 4680 | -8/Garrison | Triggered checkpoint 4730 | -8/Garrison | Garrison Relay disabled 4870 | -8/Garrison | Entered Materials 4927 | -8/Materials | Central database locked down 5449 | -8/Materials | Identified exit to Factory 5727 | -8/Materials | Entered Factory 5727 | -7/Factory | Evolved 2 slots: Propulsion x1, Utility x1 6022 | -7/Factory | Repaired Broken Imp. Flight Unit? 6119 | -7/Factory | Build established: Hacker-Sprinter 6259 | -7/Factory | Discovered new exit (range 12) 6314 | -7/Factory | Identified exit to Factory 6467 | -7/Factory | Central database locked down 6518 | -7/Factory | Repaired Imp. VTOL Module 6665 | -7/Factory | Entered another Factory area 6665 | -6/Factory | Evolved 2 slots: Utility x2 6677 | -6/Factory | Identified exit to Lower Caves 6698 | -6/Factory | Manually triggered Chute Trap 6698 | -6/Factory | Sucked down chute 6698 | -6/Factory | Entered Waste 6703 | -6/Waste | Spotted C-40 Crusher 6711 | -6/Waste | Spotted C-40 Crusher 6713 | -6/Waste | EMP discharged 6713 | -6/Waste | Spotted C-40 Crusher 6715 | -6/Waste | Spotted C-40 Crusher 6715 | -6/Waste | Spotted C-40 Crusher 6718 | -6/Waste | Spotted C-40 Crusher 6719 | -6/Waste | Discovered new exit (range 16) 6723 | -6/Waste | Identified exit to Factory 6723 | -6/Waste | Entered Factory 6757 | -6/Factory | Spotted B-75 Beast 6891 | -6/Factory | Fabricated S-27 Virus? 6935 | -6/Factory | Lost 4 allies 7224 | -6/Factory | Identified exit to Factory 7293 | -6/Factory | Entered another Factory area 7293 | -5/Factory | Evolved 2 slots: Propulsion x1, Utility x1 7420 | -5/Factory | Discovered new exit (range 8) 7435 | -5/Factory | Identified exit to Upper Caves 7551 | -5/Factory | Identified exit to Extension 7561 | -5/Factory | Sucked down chute 7561 | -5/Factory | Entered Waste 7569 | -5/Waste | Spotted C-40 Crusher 7569 | -5/Waste | Spotted C-40 Crusher 7572 | -5/Waste | Spotted C-40 Crusher 7573 | -5/Waste | Spotted C-40 Crusher 7573 | -5/Waste | Spotted C-40 Crusher 7576 | -5/Waste | EMP discharged 7577 | -5/Waste | Discovered new exit (range 16) 7577 | -5/Waste | Spotted C-40 Crusher 7581 | -5/Waste | Identified exit to Factory 7581 | -5/Waste | Entered Factory 7592 | -5/Factory | Discovered exit to Upper Caves (range 8) 7718 | -5/Factory | Entered Extension 7727 | -5/Extension | Rescued a captive Derelict 7767 | -5/Extension | Rescued a captive Derelict 7768 | -5/Extension | Rescued a captive Derelict 7832 | -5/Extension | Rescued a captive Derelict 7833 | -5/Extension | Rescued a captive Derelict 7851 | -5/Extension | Lost 6 allies 7917 | -5/Extension | Rescued a captive Derelict 7918 | -5/Extension | Rescued a captive Derelict 8314 | -5/Extension | Spotted B-75 Beast 8332 | -5/Extension | Allies destroyed B-75 Beast 8335 | -5/Extension | Spotted B-75 Beast 8350 | -5/Extension | Rescued a captive Derelict 8394 | -5/Extension | Lost 7 allies 8446 | -5/Extension | Rescued a captive Derelict 8448 | -5/Extension | Rescued a captive Derelict 8493 | -5/Extension | Rescued A7 8661 | -5/Extension | Central database locked down 8671 | -5/Extension | Rescued a captive Derelict 8769 | -5/Extension | Discovered new exit (range 10) 8769 | -5/Extension | Discovered new exit (range 6) 8771 | -5/Extension | Identified exit to Cetus 8835 | -5/Extension | Entered Cetus 8835 | -5/Cetus | Accompanied by 9 allies (A7) 8840 | -5/Cetus | Acquired a Cetus Manufacturing Module code from A7 8893 | -5/Cetus | Spotted Cetus Guard 8895 | -5/Cetus | Spotted Cetus Guard 8895 | -5/Cetus | Allies destroyed Cetus Guard 8898 | -5/Cetus | Spotted Cetus Guard 8902 | -5/Cetus | Allies destroyed Cetus Guard 8903 | -5/Cetus | Allies destroyed Cetus Guard 8946 | -5/Cetus | Discovered new exit (range 15) 8967 | -5/Cetus | Started Cetus Manufacturing Module 8992 | -5/Cetus | Manufactured an Enhanced Grunt 9006 | -5/Cetus | Escorted A7 to Cetus Mainframe 9017 | -5/Cetus | Manufactured an Enhanced Grunt 9042 | -5/Cetus | Manufactured an Enhanced Grunt 9067 | -5/Cetus | Manufactured an Enhanced Grunt 9092 | -5/Cetus | Manufactured an Enhanced Grunt 9114 | -5/Cetus | Discovered new exit (range 15) 9120 | -5/Cetus | Identified exit to Archives 9167 | -5/Cetus | Entered Archives 9167 | -5/Archives | Accompanied by 12 allies (A7) 9172 | -5/Archives | Received a hacking code to weaken MAIN.C 9264 | -5/Archives | Discovered new exit (range 16) 9266 | -5/Archives | Discovered new exit (range 15) 9269 | -5/Archives | Discovered new exit (range 16) 9407 | -5/Archives | Identified exit to Hub_04(d) 9454 | -5/Archives | Entered Hub_04(d) 9454 | -5/Hub_04(d) | Accompanied by 9 allies 9506 | -5/Hub_04(d) | Build established: Wizard-Sprinter 9539 | -5/Hub_04(d) | Discovered new exit (range 2) 9539 | -5/Hub_04(d) | Identified exit to Factory 9661 | -5/Hub_04(d) | Network Hub disabled 9688 | -5/Hub_04(d) | Network Hub disabled 9690 | -5/Hub_04(d) | Spotted Lightning 9693 | -5/Hub_04(d) | Network Hub disabled 9768 | -5/Hub_04(d) | Entered Factory 9768 | -4/Factory | Evolved 2 slots: Propulsion x1, Weapon x1 9784 | -4/Factory | Lost 7 allies 9829 | -4/Factory | Repaired Sml. Storage Unit 9864 | -4/Factory | Repaired Imp. VTOL Module 9896 | -4/Factory | Repaired Imp. VTOL Module 9927 | -4/Factory | Repaired Imp. VTOL Module 9954 | -4/Factory | Repaired Imp. Flight Unit 9966 | -4/Factory | Identified exit to Research 10180 | -4/Factory | Discovered new exit (range 9) 10182 | -4/Factory | Identified exit to Upper Caves 10239 | -4/Factory | Repaired Centrium Medium Armor Plating 10266 | -4/Factory | Repaired Lgt. Fission Core 10302 | -4/Factory | Repaired Cld. VTOL Module 10332 | -4/Factory | Repaired Phasing Sabre 10358 | -4/Factory | Repaired Imp. Flight Unit 10574 | -4/Factory | Fabricated Imp. VTOL Module? 10917 | -4/Factory | Fabricated Exp. Utility Shielding? 11075 | -4/Factory | Fabricated Exp. Utility Shielding (x1) 11119 | -4/Factory | Entered Research 11119 | -3/Research | Evolved 2 slots: Utility x1, Weapon x1 11363 | -3/Research | Identified exit to Testing 11363 | -3/Research | Identified exit to Research 11486 | -3/Research | Spotted B-86 Titan 11510 | -3/Research | Fabricated Nanosword? 11597 | -3/Research | Fabricated Exp. Utility Shielding (x1) 11687 | -3/Research | Spotted B-86 Titan 11728 | -3/Research | Repaired Cld. VTOL Module 11766 | -3/Research | Repaired Centrium Medium Armor Plating 11862 | -3/Research | Repaired Adv. Reaction Control System 11883 | -3/Research | Fabricated Nanosword? 11968 | -3/Research | Entered Testing 11974 | -3/Testing | Found Prototype Launcher 11974 | -3/Testing | Identified Z-bomb Delivery System 12023 | -3/Testing | Found Prototype Processor 12023 | -3/Testing | Identified Exp. Melee Analysis Suite 12026 | -3/Testing | Found Prototype Processor 12026 | -3/Testing | Identified Exp. Core Analyzer 12051 | -3/Testing | Build established: Hacker-Sprinter 12148 | -3/Testing | Unchained authorized (6S-H0T) 12193 | -3/Testing | Found Prototype Hackware 12193 | -3/Testing | Identified Ghost Barrier 12259 | -3/Testing | Fabricated Femtoactuators? 12291 | -3/Testing | Discovered exit to Research (range 10) 12293 | -3/Testing | Entered Research 12293 | -2/Research | Evolved 2 slots: Power x1, Propulsion x1 12301 | -2/Research | Identified exit to Quarantine 12385 | -2/Research | Spotted B-90 Cyclops 12389 | -2/Research | Spotted B-90 Cyclops 12392 | -2/Research | Found Exp. Actuator Array 12472 | -2/Research | Unchained authorized (6S-H0T) 12517 | -2/Research | Spotted B-90 Cyclops 12535 | -2/Research | Entered Quarantine 12540 | -2/Quarantine | Found Alien Artifact 12555 | -2/Quarantine | Identified Subatomic Replicator 12585 | -2/Quarantine | Repaired Impulse Thruster Array+ 12619 | -2/Quarantine | Repaired Cld. Field Propulsion Drive 12666 | -2/Quarantine | Repaired Broken Cld. Impulse Thruster 12682 | -2/Quarantine | Cryocooling Duct disabled 12697 | -2/Quarantine | Ambient heat levels rising (+20) 12697 | -2/Quarantine | Non-combat units ordered to evacuate 12728 | -2/Quarantine | Repaired Centrium Medium Armor Plating 12805 | -2/Quarantine | Identified exit to Access 12810 | -2/Quarantine | Found Alien Artifact 12814 | -2/Quarantine | Found Alien Artifact 12992 | -2/Quarantine | Spotted Alpha 7 13030 | -2/Quarantine | Spotted Fortress 13045 | -2/Quarantine | Discovered new exit (range 6) 13045 | -2/Quarantine | Discovered new exit (range 7) 13046 | -2/Quarantine | Identified exit to Protoforge 13046 | -2/Quarantine | Entered Protoforge 13065 | -2/Protoforge | Spotted Hotshot 13065 | -2/Protoforge | Spotted Hotshot 13065 | -2/Protoforge | Spotted Hotshot 13065 | -2/Protoforge | Spotted Hotshot 13066 | -2/Protoforge | Superfortress began startup sequence 13077 | -2/Protoforge | Spotted B-90 Cyclops 13077 | -2/Protoforge | Identified Hpw. Transdimensional Reconstructor (x2) 13077 | -2/Protoforge | Warped through subspace 13106 | -2/Protoforge | Spotted Hotshot 13106 | -2/Protoforge | Spotted Hotshot 13106 | -2/Protoforge | Spotted Hotshot 13106 | -2/Protoforge | Spotted Hotshot 13106 | -2/Protoforge | Spotted Hotshot 13175 | -2/Protoforge | Warped through subspace 13176 | -2/Protoforge | Spotted Decapitator 13177 | -2/Protoforge | Spotted Decapitator 13558 | -2/Protoforge | Forge Plexus network access discovered 13619 | -2/Protoforge | Found Cep. Chromion Battery 13645 | -2/Protoforge | Destroyed Decapitator 13647 | -2/Protoforge | Destroyed Decapitator 13677 | -2/Protoforge | Found Cep. RG22 Armor 13679 | -2/Protoforge | Lost 3 parts (1p1n1w) 13680 | -2/Protoforge | Found Cep. RG22 Armor 13711 | -2/Protoforge | Found Cep. Reaction Jets 13738 | -2/Protoforge | Spotted V711-s 13739 | -2/Protoforge | Spotted V935-l 13740 | -2/Protoforge | Spotted V855-p 13746 | -2/Protoforge | Scanned by Researcher 13769 | -2/Protoforge | System corruption reached 10% 13774 | -2/Protoforge | Core integrity fell below 50% 13785 | -2/Protoforge | Destroyed V855-p 13795 | -2/Protoforge | Found Corrupted Cep. Fieldthrust Drive 13796 | -2/Protoforge | System corruption reached 30% 13812 | -2/Protoforge | Lost 8 parts (1p2n4u1w) 13833 | -2/Protoforge | Spotted V476-m 13857 | -2/Protoforge | Found Prototype Device 13857 | -2/Protoforge | Identified Exp. Weapon Cycler 13906 | -2/Protoforge | Found Exp. System Purifier 13908 | -2/Protoforge | Found Exp. System Purifier 13912 | -2/Protoforge | Found Crosscalibrator 13944 | -2/Protoforge | Found Cep. Biometal Exoskeleton 14011 | -2/Protoforge | Core integrity fell below 20% 14065 | -2/Protoforge | Found Faulty Cep. Fieldthrust Drive 14128 | -2/Protoforge | Destroyed by P-80 Master with Gamma Rifle Last Messages --------------- 14108_ Acquired 20 matter. 14109_ U-05 Engineer lays Concrete. 14114_ P-80 Master resets U-05 Engineer, system corruption cleaned. 14114_ U-05 Engineer lays Concrete. 14115_ ,BMALY663ES240 291:XFUBCEG 14115_ U-05 Engineer lays Concrete. 14116_ N-04 Retriever collects Adv. Heat Sink. 14117_ U-05 Engineer lays Concrete. 14118_ Acquired 10 matter. 14118_ N-04 Retriever collects Gamma Rifle. 14118_ N-04 Retriever collects Imp. Antigrav System. 14118_ N-04 Retriever collects Mic. Antimatter Reactor+. 14118_ P-80 Master destroyed. 14118_ U-05 Engineer lays Concrete. 14119_ N-04 Retriever collects Sml. Battery. 14121_ U-05 Engineer lays Concrete. 14125_ Nanosword destroyed. Map ----- +----------------------------------------------------+ | #????????????????#! ! #?!!!!????????????????????? | | #????????????????### ""##"""###??????????????????? | | #????????????????# "#??????????????????? | | #????????????????# ""#??????????????????? | | ################## """"#??????????????????? | | """"#??????????????????? | | % ""#??????????????????? | | ########### # "#??????????????????? | | #?????????#" #"" "#??????????????????? | | #?????????#########" """"""""##??????????????????? | | #????????????????#"! !!! !!/"#??????????????????? | | #????????????????#" ! !*!"#??????????????????? | | #????????????????#""""""""""""#??????????????????? | | #????????????????##############??????????????????? | | #????????????????????????????????????????????????? | | #????????????????????????????????????????????????? | | #????????????????????????????????????????????????? | | #????????????????????????????????????????????????? | | #???????????????###############??????????????????? | | #???????????????#%% ! !%[= #??????????????????? | | #???????????????#"!==%==!==== #??????????????????? | | #???????????????# = !=====%== #??????????????????? | | #???????????????#####" %!== ##??????????????????? | | #???????????????????" u !! % #??????????????????? | | #?????????????????#"" #??????????????????? | | ################### @ #??????????????????? | | p #??????????????????? | | #??????????????????? | | #########++######## "#??????????????????? | | #??????" # "#??????????????????? | | #?????#" " ##??????????????????? | | #?????#" " " " ""???????????????????? | | #?????#"""""""# " "????????????????????? | | #?????######### ####"%""""#????????????????????? | | #?????????????#####??#======#????????????????????? | | #????????????????????#======#????????????????????? | | #????????????????????########????????????????????? | | #????????????????????????????????????????????????? | | #????????????????????????????????????????????????? | | #????????????????????????????????????????????????? | | #????????????????????????????????????????????????? | | #????????????????????????????????????????????????? | | #????????????????????????????????????????????????? | | ?????????????????????????????????????????????????? | | ?????????????????????????????????????????????????? | | ?????????????????????????????????????????????????? | | ?????????????????????????????????????????????????? | | ?????????????????????????????????????????????????? | | ?????????????????????????????????????????????????? | | ?????????????????????????????????????????????????? | +----------------------------------------------------+ Best States ------------- Heat Dissipation 59 Energy Generation 44 Energy Capacity 950 Matter Stores 300 Matter Capacity 300 Sight Range 16 Robot Scan Range 16 Terrain Scan Density 10 ECM Strength 2 Armor Coverage 450 Propulsion Shielding 33 Utility Shielding 90 Melee Speed Boost 50 Evasion (%) 76 Melee Accuracy 12 Core Analysis 8 Recoil Reduction 4 Offensive Hacking 62 Defensive Hacking 20 Relay Coupler Types 1 Relay Coupler Value 26 Authchip Count 2 Item Schematics ----------------- Imp. Flight Unit | -8/Materials | Scanalyzed Imp. VTOL Module | -8/Materials | Scanalyzed Lrn. Sensor Array | -4/Factory | Hacked Exp. Utility Shielding | -4/Factory | Hacked Adv. Actuator Array | -4/Factory | Scanalyzed Cld. Q-thruster | -3/Research | Hacked Nanosword | -3/Research | Hacked Exp. Actuator Array | -3/Research | Hacked Femtoactuators | -3/Research | Hacked Exp. Phase Shifter | -3/Research | Hacked Robot Schematics ------------------ None Fabricated ------------ S-27 Virus | x4 | -6/Factory | Preloaded Imp. VTOL Module | x1 | -4/Factory | Authchip Exp. Utility Shielding | x1 | -4/Factory | Authchip Exp. Utility Shielding | x1 | -4/Factory | Authchip Nanosword | x1 | -3/Research | Authchip Exp. Utility Shielding | x1 | -3/Research | Authchip Nanosword | x1 | -3/Research | Authchip Femtoactuators | x1 | -3/Testing | Authchip Repaired ---------- Imp. VTOL Module | 99% | -8/Materials | Broken Imp. Flight Unit | 99% | -7/Factory | Broken Imp. VTOL Module | 50% | -7/Factory Sml. Storage Unit | 19% | -4/Factory Imp. VTOL Module | 40% | -4/Factory Imp. VTOL Module | 52% | -4/Factory Imp. VTOL Module | 66% | -4/Factory Imp. Flight Unit | 50% | -4/Factory Centrium Medium Armor Plating | 55% | -4/Factory Lgt. Fission Core | 21% | -4/Factory Cld. VTOL Module | 38% | -4/Factory Phasing Sabre | 41% | -4/Factory Imp. Flight Unit | 62% | -4/Factory Cld. VTOL Module | 23% | -3/Research Centrium Medium Armor Plating | 60% | -3/Research Adv. Reaction Control System | 44% | -3/Research Impulse Thruster Array | 20% | -2/Quarantine Cld. Field Propulsion Drive | 20% | -2/Quarantine Cld. Impulse Thruster | 41% | -2/Quarantine | Broken Centrium Medium Armor Plating | 64% | -2/Quarantine Studied --------- Arm. Treads | -8/Materials | Hacked Beam Cannon | -8/Materials | Hacked Datajack | -8/Materials | Hacked Lgt. Treads | -8/Materials | Hacked Scythe | -8/Materials | Hacked Flight Unit | -8/Materials | Hacked Greatsword | -7/Factory | Hacked Mic. Nuclear Core | -7/Factory | Hacked Missile Launcher | -6/Factory | Hacked Remote Datajack | -6/Factory | Hacked Hvy. Pick | -5/Factory | Hacked Field Propulsion Drive | -4/Factory | Hacked Lgt. Fission Core | -4/Factory | Hacked Impulse Thruster Array | -3/Testing | Hacked Mic. Antimatter Reactor | -2/Research | Hacked Lrn. Missile Launcher | -2/Research | Hacked Alien Tech Used ----------------- High-powered Transdimensional Reconstructor Achievements -------------- None Challenges ------------ None Game ------ Seed LaserScanTurbovents Manual? 0 Play Time 03:15:10 Cumulative 411.1 hours Start 2025.11.23 @ 18:18:16 End 2025.11.23 @ 22:50:53 Sessions 1 Manual Loads 0 Difficulty Rogue Special Mode None Game No. 133 Rogue 133 Adventurer 0 Explorer 0 Win Type - Total 12 Types 3/0/6/0/1/0/1/0/0/1 Lore% 80 Gallery% 86 Achievement% 72 Wizard Run 0 Options --------- Layout 1 ASCII 0 Keyboard 1 Movement Arrows Keybinds 0 Fullscreen 1 Font 24/Smallcaps Map View 50x35 Zoom Use 0% Tactical HUD 1 Map Filters NONE Filters NONE Steam 1 RUN: e8bd0b44-28af-4616-85c8-22df066eb79f